fUST/lending_fUST_20250914
["ID","MTS","AMOUNT","RATE_DAILY","PERIOD"]
[385407359,1757842251109,-1484.05,0.00022191,3]
[385407360,1757842251118,-480.0,0.00022191,3]
[385407361,1757842251127,-480.0,0.00022191,3]
[385407362,1757842251137,-512.92,0.00022191,3]
[385407363,1757842251146,-6860.28,0.00022191,3]
[385407364,1757842251155,-834.53,0.00022191,3]
[385407365,1757842251164,-480.0,0.00022191,3]
[385407366,1757842251173,-4760.97,0.00022191,3]
[385407367,1757842251182,-480.0,0.00022191,3]
[385407368,1757842251191,-151.0,0.00022191,7]
[385407369,1757842251200,-1169.89,0.00022191,3]
[385407370,1757842251209,-151.0,0.00022191,7]
[385407371,1757842251218,-151.0,0.00022191,7]
[385407372,1757842251227,-151.0,0.00022191,7]
[385407373,1757842251237,-590.5,0.00022191,3]
[385407374,1757842251245,-151.0,0.00022191,7]
[385407375,1757842251255,-151.0,0.00022191,7]
[385407376,1757842251264,-480.0,0.00022191,3]
[385407377,1757842251273,-480.0,0.00022191,3]
[385407378,1757842251282,-480.0,0.00022191,3]
[385407379,1757842251291,-1542.2,0.00022191,3]
[385407380,1757842251302,-480.0,0.00022191,3]
[385407381,1757842251311,-519.2652221,0.00022191,3]
[385407382,1757842251319,-14442.99,0.00022191,3]
[385407383,1757842251328,-3752.88,0.00022191,3]
[385407384,1757842251338,-2372.18,0.00022191,3]
[385407385,1757842251348,-2990.71,0.00022191,3]
[385407386,1757842251357,-480.0,0.00022191,3]
[385407387,1757842251366,-480.0,0.00022191,3]
[385407388,1757842251376,-915.36,0.00022191,3]
[385407389,1757842251385,-321.49608643,0.00022191,3]
[385407390,1757842251394,-480.0,0.00022191,3]
[385407391,1757842251404,-480.0,0.00022191,3]
[385407392,1757842251413,-480.0,0.00022191,3]
[385407393,1757842251422,-480.0,0.00022191,3]
[385407394,1757842251431,-550.01,0.00022191,3]
[385407395,1757842251440,-480.0,0.00022191,3]
[385407396,1757842251450,-480.0,0.00022191,3]
[385407397,1757842251459,-2319.02,0.00022191,3]
[385407398,1757842251469,-689.3,0.00022191,3]
[385407399,1757842251478,-480.0,0.00022191,3]
[385407400,1757842251487,-539.56,0.00022191,3]
[385407401,1757842251496,-520.06612952,0.00022191,3]
[385407402,1757842251506,-1110.62,0.00022191,3]
[385407403,1757842251515,-626.38,0.00022191,3]
[385407404,1757842251524,-7387.37,0.00022191,3]
[385407405,1757842251534,-1268.78,0.00022191,3]
[385407406,1757842251543,-480.0,0.00022191,3]
[385407407,1757842251553,-726.21,0.00022191,3]
[385407408,1757842251562,-815.14,0.00022191,3]
[385407409,1757842251572,-560.89,0.00022191,3]
[385407410,1757842251581,-816.39,0.00022191,3]
[385407411,1757842251591,-480.0,0.00022191,3]
[385407412,1757842251600,-2900.75,0.00022191,3]
[385407413,1757842251609,-773.09,0.00022191,3]
[385407414,1757842251619,-3584.76,0.00022191,3]
[385407415,1757842251628,-1442.82,0.00022191,3]
[385407416,1757842251637,-480.0,0.00022191,3]
[385407417,1757842251647,-643.08,0.00022191,3]
[385407418,1757842251656,-270.46886895,0.00022191,3]
[385407419,1757842251666,-247.80611575,0.00022191,3]
[385407420,1757842251675,-1041.98,0.00022191,3]
[385407421,1757842251684,-2318.4,0.00022191,3]
[385407422,1757842251693,-196.87364201,0.00022191,3]
[385407423,1757842251702,-5897.22,0.00022191,3]
[385407424,1757842251712,-480.0,0.00022191,3]
[385407425,1757842251721,-480.0,0.00022191,3]
[385407426,1757842251730,-480.0,0.00022191,3]
[385407427,1757842251739,-480.0,0.00022191,3]
[385407428,1757842251749,-480.0,0.00022191,3]
[385407429,1757842251759,-1026.22,0.00022191,3]
[385407430,1757842251768,-528.31,0.00022191,3]
[385407431,1757842251777,-939.18,0.00022191,3]
[385407432,1757842251786,-494.26240767,0.00022191,3]
[385407433,1757842251796,-480.0,0.00022191,3]
[385407434,1757842251805,-2788.56,0.00022191,3]
[385407435,1757842251814,-511.63,0.00022191,3]
[385407436,1757842251823,-480.0,0.00022191,3]
[385407437,1757842251833,-667.44,0.00022191,3]
[385407438,1757842251842,-1596.81,0.00022191,3]
[385407439,1757842251851,-716.08,0.00022191,3]
[385407440,1757842251859,-480.0,0.00022191,3]
[385407441,1757842251869,-480.0,0.00022191,3]
[385407442,1757842251878,-480.0,0.00022191,3]
[385407443,1757842251887,-1168.99,0.00022191,3]
[385407444,1757842251896,-480.0,0.00022191,3]
[385407445,1757842251905,-1411.93,0.00022191,3]
[385407446,1757842251914,-480.0,0.00022191,3]
[385407447,1757842251923,-941.43,0.00022191,3]
[385407448,1757842251935,-823.14,0.00022191,3]
[385407449,1757842251944,-510.71,0.00022191,3]
[385407450,1757842251953,-890.31,0.00022191,3]
[385407451,1757842251963,-708.99,0.00022191,3]
[385407452,1757842251971,-480.0,0.00022191,3]
[385407453,1757842251982,-480.0,0.00022191,3]
[385407454,1757842251991,-480.0,0.00022191,3]
[385407455,1757842252000,-3242.87,0.00022191,3]
[385407456,1757842252011,-883.85,0.00022191,3]
[385407457,1757842252021,-480.0,0.00022191,3]
[385407458,1757842252030,-2283.8,0.00022191,3]
[385407459,1757842252040,-330.42,0.00022191,2]
[385407460,1757842252049,-480.0,0.00022191,3]
[385407461,1757842252058,-480.0,0.00022191,3]
[385407462,1757842252067,-545.98,0.00022191,3]
[385407463,1757842252076,-1241.46,0.00022191,3]
[385407464,1757842252086,-1074.27,0.00022191,3]
[385407465,1757842252095,-480.0,0.00022191,3]
[385407466,1757842252104,-480.0,0.00022191,3]
[385407467,1757842252113,-967.27,0.00022191,3]
[385407468,1757842252122,-151.0,0.00022191,7]
[385407469,1757842252132,-151.0,0.00022191,7]
[385407470,1757842252141,-1147.64,0.00022191,3]
[385407471,1757842252151,-1003.54,0.00022191,3]
[385407472,1757842252160,-298.834572,0.00022191,7]
[385407473,1757842252169,-687.97,0.00022191,3]
[385407474,1757842252179,-480.0,0.00022191,3]
[385407475,1757842252188,-480.0,0.00022191,2]
[385407476,1757842252197,-567.67,0.00022191,3]
[385407477,1757842252206,-836.37,0.00022191,3]
[385407478,1757842252215,-151.0,0.00022191,7]
[385407479,1757842252224,-779.88,0.00022191,3]
[385407480,1757842252233,-151.0,0.00022191,7]
[385407481,1757842252243,-794.71,0.00022191,3]
[385407482,1757842252252,-493.55,0.00022191,3]
[385407483,1757842252261,-151.0,0.00022191,7]
[385407484,1757842252270,-480.0,0.00022191,3]
[385407485,1757842252279,-171.398838,0.00022191,7]
[385407486,1757842252288,-480.0,0.00022191,3]
[385407487,1757842252297,-4178.51,0.00022191,3]
[385407488,1757842252306,-600.78350018,0.00022191,3]
[385407489,1757842252315,-480.0,0.00022191,3]
[385407490,1757842252324,-29658.1,0.00022191,3]
[385407491,1757842252334,-480.0,0.00022191,3]
[385407492,1757842252343,-484.13133767,0.00022191,3]
[385407493,1757842252352,-483.14983147,0.00022191,3]
[385407494,1757842252362,-996.66,0.00022191,3]
[385407495,1757842252371,-151.0,0.00022191,7]
[385407496,1757842252380,-151.0,0.00022191,7]
[385407497,1757842252389,-480.0,0.00022191,3]
[385407498,1757842252398,-1195.2595859,0.000222,3]
[385407499,1757842252408,-151.0,0.000222,10]
[385407500,1757842252417,-719.34,0.000222,7]
[385407501,1757842252426,-20597.86,0.000222,7]
[385407502,1757842252435,-1002.66,0.000222,7]
[385407503,1757842252444,-151.0,0.000222,7]
[385407504,1757842252453,-151.0,0.000222,7]
[385407505,1757842252462,-151.0,0.000222,7]
[385407506,1757842252473,-163.049832,0.000222,7]
[385407507,1757842252482,-151.0,0.000222,7]
[385407508,1757842252492,-491071.97,0.0002222,2]
[385407509,1757842252501,-151.0,0.0002222,7]
[385407510,1757842252510,-151.0,0.0002222,7]
[385407511,1757842252519,-151.0,0.0002222,7]
[385407512,1757842252529,-151.0,0.0002222,7]
[385407513,1757842252538,-295.983476,0.0002222,7]
[385407514,1757842252548,-151.0,0.0002222,7]
[385407515,1757842252557,-151.0,0.0002222,7]
[385407516,1757842252567,-151.0,0.0002222,7]
[385407517,1757842252576,-151.0,0.0002222,7]
[385407518,1757842252586,-151.0,0.0002222,7]
[385407519,1757842252596,-151.0,0.0002222,7]
[385407520,1757842252606,-151.0,0.0002222,7]
[385407521,1757842252615,-8022.29825652,0.00022228,2]
[385407522,1757842252625,-233.0,0.00022247,2]
[385407523,1757842252634,-500.0,0.00022273,2]
[385407524,1757842252643,-500.0,0.00022273,2]
[385407525,1757842252653,-500.0,0.00022273,2]
[385407526,1757842252662,-500.0,0.00022273,2]
[385407527,1757842252671,-755.0,0.00022364,2]
[385407528,1757842252680,-272.81324317,0.00022364,2]
[385407529,1757842252690,-3767.62923184,0.00022398,2]
[385407530,1757842252700,-151.0,0.000224,5]
[385407531,1757842252709,-151.0,0.000224,6]
[385407532,1757842252719,-151.0,0.000224,10]
[385407533,1757842252728,-151.0,0.000224,9]
[385407534,1757842252738,-200000.0,0.0002244,2]
[385407535,1757842252748,-221.392579,0.0002244,7]
[385407536,1757842252757,-266.33135434,0.00022465,3]
[385407537,1757842252767,-283.93505958,0.00022465,3]
[385407538,1757842252791,-480.0,0.00022465,3]
[385407539,1757842252815,-480.0,0.00022465,3]
[385407540,1757842252830,-480.0,0.00022465,3]
[385407541,1757842252844,-480.0,0.00022465,3]
[385407542,1757842252855,-480.0,0.00022465,3]
[385407543,1757842252864,-172.13332687,0.00022465,3]
[385407544,1757842252874,-480.0,0.00022465,3]
[385407545,1757842252884,-480.0,0.00022465,3]
[385407546,1757842252893,-480.0,0.00022465,3]
[385407547,1757842252902,-497.91640254,0.00022465,3]
[385407548,1757842252912,-480.0,0.00022465,3]
[385407549,1757842252921,-480.0,0.00022465,3]
[385407550,1757842252930,-480.0,0.00022465,3]
[385407551,1757842252940,-500.0,0.00022465,3]
[385407552,1757842252949,-480.0,0.00022465,3]
[385407553,1757842252958,-603.75,0.00022465,3]
[385407554,1757842252967,-517.94,0.00022465,3]
[385407555,1757842252978,-650.32,0.00022465,3]
[385407556,1757842252991,-480.0,0.00022465,3]
[385407557,1757842253001,-480.0,0.00022465,3]
[385407558,1757842253011,-385.49792962,0.00022465,3]
[385407559,1757842253021,-480.0,0.00022465,3]
[385407560,1757842253031,-628.38,0.00022465,3]
[385407561,1757842253042,-480.0,0.00022465,3]
[385407562,1757842253051,-251.11906951,0.00022465,3]
[385407563,1757842253061,-487.82,0.00022465,3]
[385407564,1757842253070,-480.0,0.00022465,3]
[385407565,1757842253079,-480.0,0.00022465,3]
[385407566,1757842253089,-298.50312114,0.00022465,3]
[385407567,1757842253098,-442.72811461,0.00022465,3]
[385407568,1757842253107,-608.40252563,0.00022465,3]
[385407569,1757842253118,-715.55,0.00022465,3]
[385407570,1757842253128,-480.0,0.00022465,3]
[385407571,1757842253137,-857.15,0.00022465,3]
[385407572,1757842253147,-271.32192025,0.00022465,3]
[385407573,1757842253156,-1039.56,0.00022465,3]
[385407574,1757842253165,-480.0,0.00022465,3]
[385407575,1757842253175,-480.0,0.00022465,3]
[385407576,1757842253184,-1229.55,0.00022465,3]
[385407577,1757842253194,-1078.36,0.00022465,3]
[385407578,1757842253203,-814.79,0.00022465,3]
[385407579,1757842253211,-878.99,0.00022465,3]
[385407580,1757842253221,-480.0,0.00022465,3]
[385407581,1757842253230,-480.0,0.00022465,3]
[385407582,1757842253239,-1413.74,0.00022465,3]
[385407583,1757842253248,-480.0,0.00022465,3]
[385407584,1757842253258,-1065.31,0.00022465,3]
[385407585,1757842253267,-480.0,0.00022465,3]
[385407586,1757842253277,-489.74,0.00022465,3]
[385407587,1757842253286,-480.0,0.00022465,3]
[385407588,1757842253296,-609.45400995,0.00022465,3]
[385407589,1757842253305,-480.0,0.00022465,3]
[385407590,1757842253314,-783.43,0.00022465,3]
[385407591,1757842253323,-480.0,0.00022465,3]
[385407592,1757842253332,-1058.04,0.00022465,3]
[385407593,1757842253342,-480.0,0.00022465,3]
[385407594,1757842253352,-480.0,0.00022465,3]
[385407595,1757842253361,-728.82,0.00022465,3]
[385407596,1757842253370,-480.0,0.00022465,3]
[385407597,1757842253380,-480.0,0.00022465,3]
[385407598,1757842253389,-724.7,0.00022465,3]
[385407599,1757842253398,-186.93,0.00022465,3]
[385407600,1757842253407,-500.0,0.00022465,3]
[385407601,1757842253417,-480.0,0.00022465,3]
[385407602,1757842253427,-480.0,0.00022465,3]
[385407603,1757842253439,-495.43595141,0.00022465,3]
[385407604,1757842253449,-480.0,0.00022465,3]
[385407605,1757842253458,-480.0,0.00022465,3]
[385407606,1757842253468,-736.46,0.00022465,3]
[385407607,1757842253478,-480.0,0.00022465,3]
[385407608,1757842253489,-953.32,0.00022465,3]
[385407609,1757842253498,-255.35145248,0.00022465,3]
[385407610,1757842253507,-1851.05,0.00022465,3]
[385407611,1757842253517,-816.13,0.00022465,3]
[385407612,1757842253526,-916.64,0.00022465,3]
[385407613,1757842253536,-859.31,0.00022465,3]
[385407614,1757842253545,-480.0,0.00022465,3]
[385407615,1757842253555,-857.5,0.00022465,3]
[385407616,1757842253564,-170.79847766,0.00022465,3]
[385407617,1757842253573,-558.54,0.00022465,3]
[385407618,1757842253583,-480.0,0.00022465,3]
[385407619,1757842253592,-480.0,0.00022465,3]
[385407620,1757842253601,-1052.55,0.00022465,3]
[385407621,1757842253611,-480.0,0.00022465,3]
[385407622,1757842253620,-4286.53,0.00022465,3]
[385407623,1757842253629,-480.0,0.00022465,3]
[385407624,1757842253639,-3346.74,0.00022465,3]
[385407625,1757842253648,-1303.6,0.00022465,3]
[385407626,1757842253658,-480.0,0.00022465,3]
[385407627,1757842253667,-480.0,0.00022465,3]
[385407628,1757842253676,-480.0,0.00022465,3]
[385407629,1757842253685,-1497.82,0.00022465,3]
[385407630,1757842253695,-578.87,0.00022465,3]
[385407631,1757842253704,-480.0,0.00022465,3]
[385407632,1757842253714,-480.0,0.00022465,3]
[385407633,1757842253726,-1428.71,0.00022465,3]
[385407634,1757842253738,-480.0,0.00022465,3]
[385407635,1757842253749,-1484.05,0.00022465,3]
[385407636,1757842253759,-512.92,0.00022465,3]
[385407637,1757842253768,-6860.28,0.00022465,3]
[385407638,1757842253778,-834.53,0.00022465,3]
[385407639,1757842253788,-254.55976953,0.00022465,3]
[385407640,1757842253798,-4760.97,0.00022465,3]
[385407641,1757842253809,-480.0,0.00022465,3]
[385407642,1757842253818,-1169.89,0.00022465,3]
[385407643,1757842253828,-590.5,0.00022465,3]
[385407644,1757842253837,-480.0,0.00022465,3]
[385407645,1757842253846,-480.0,0.00022465,3]
[385407646,1757842253856,-1542.2,0.00022465,3]
[385407647,1757842253866,-480.0,0.00022465,3]
[385407648,1757842253876,-14442.99,0.00022465,3]
[385407649,1757842253885,-3752.88,0.00022465,3]
[385407650,1757842253895,-2372.18,0.00022465,3]
[385407651,1757842253904,-2990.71,0.00022465,3]
[385407652,1757842253913,-480.0,0.00022465,3]
[385407653,1757842253923,-480.0,0.00022465,3]
[385407654,1757842253938,-915.36,0.00022465,3]
[385407655,1757842253948,-480.0,0.00022465,3]
[385407656,1757842253957,-480.0,0.00022465,3]
[385407657,1757842253967,-480.0,0.00022465,3]
[385407658,1757842253976,-489.78955133,0.00022465,3]
[385407659,1757842253986,-550.01,0.00022465,3]
[385407660,1757842253995,-480.0,0.00022465,3]
[385407661,1757842254130,-2319.02,0.00022465,3]
[385407662,1757842254144,-689.3,0.00022465,3]
[385407663,1757842254153,-480.0,0.00022465,3]
[385407664,1757842254163,-539.56,0.00022465,3]
[385407665,1757842254172,-1110.62,0.00022465,3]
[385407666,1757842254182,-626.38,0.00022465,3]
[385407667,1757842254191,-7387.37,0.00022465,3]
[385407668,1757842254200,-1268.78,0.00022465,3]
[385407669,1757842254210,-480.0,0.00022465,3]
[385407670,1757842254219,-726.21,0.00022465,3]
[385407671,1757842254228,-815.14,0.00022465,3]
[385407672,1757842254238,-560.89,0.00022465,3]
[385407673,1757842254247,-816.39,0.00022465,3]
[385407674,1757842254256,-480.0,0.00022465,3]
[385407675,1757842254266,-2900.75,0.00022465,3]
[385407676,1757842254275,-773.09,0.00022465,3]
[385407677,1757842254285,-3584.76,0.00022465,3]
[385407678,1757842254294,-1442.82,0.00022465,3]
[385407679,1757842254303,-643.08,0.00022465,3]
[385407680,1757842254312,-1041.98,0.00022465,3]
[385407681,1757842254322,-2318.4,0.00022465,3]
[385407682,1757842254331,-5897.22,0.00022465,3]
[385407683,1757842254340,-399.66506662,0.00022465,3]
[385407684,1757842254350,-480.0,0.00022465,3]
[385407685,1757842254359,-480.0,0.00022465,3]
[385407686,1757842254369,-480.0,0.00022465,3]
[385407687,1757842254379,-480.0,0.00022465,3]
[385407688,1757842254388,-1026.22,0.00022465,3]
[385407689,1757842254398,-528.31,0.00022465,3]
[385407690,1757842254407,-939.18,0.00022465,3]
[385407691,1757842254416,-480.0,0.00022465,3]
[385407692,1757842254425,-2788.56,0.00022465,3]
[385407693,1757842254435,-511.63,0.00022465,3]
[385407694,1757842254444,-480.0,0.00022465,3]
[385407695,1757842254453,-667.44,0.00022465,3]
[385407696,1757842254462,-1596.81,0.00022465,3]
[385407697,1757842254473,-716.08,0.00022465,3]
[385407698,1757842254483,-480.0,0.00022465,3]
[385407699,1757842254492,-480.0,0.00022465,3]
[385407700,1757842254502,-1168.99,0.00022465,3]
[385407701,1757842254511,-480.0,0.00022465,3]
[385407702,1757842254521,-1411.93,0.00022465,3]
[385407703,1757842254530,-480.0,0.00022465,3]
[385407704,1757842254539,-941.43,0.00022465,3]
[385407705,1757842254548,-823.14,0.00022465,3]
[385407706,1757842254557,-510.71,0.00022465,3]
[385407707,1757842254567,-890.31,0.00022465,3]
[385407708,1757842254576,-708.99,0.00022465,3]
[385407709,1757842254585,-480.0,0.00022465,3]
[385407710,1757842254595,-480.0,0.00022465,3]
[385407711,1757842254604,-480.0,0.00022465,3]
[385407712,1757842254614,-3242.87,0.00022465,3]
[385407713,1757842254623,-883.85,0.00022465,3]
[385407714,1757842254632,-480.0,0.00022465,3]
[385407715,1757842254642,-2283.8,0.00022465,3]
[385407716,1757842254651,-330.42,0.00022465,2]
[385407717,1757842254661,-480.0,0.00022465,3]
[385407718,1757842254670,-480.0,0.00022465,3]
[385407719,1757842254679,-545.98,0.00022465,3]
[385407720,1757842254689,-1074.27,0.00022465,3]
[385407721,1757842254698,-1241.46,0.00022465,3]
[385407722,1757842254707,-480.0,0.00022465,3]
[385407723,1757842254717,-480.0,0.00022465,3]
[385407724,1757842254726,-967.27,0.00022465,3]
[385407725,1757842254735,-1003.54,0.00022465,3]
[385407726,1757842254745,-1147.64,0.00022465,3]
[385407727,1757842254754,-687.97,0.00022465,3]
[385407728,1757842254764,-480.0,0.00022465,3]
[385407729,1757842254774,-480.0,0.00022465,2]
[385407730,1757842254783,-567.67,0.00022465,3]
[385407731,1757842254792,-836.37,0.00022465,3]
[385407732,1757842254802,-779.88,0.00022465,3]
[385407733,1757842254811,-794.71,0.00022465,3]
[385407734,1757842254820,-493.55,0.00022465,3]
[385407735,1757842254830,-480.0,0.00022465,3]
[385407736,1757842254841,-322.69797337,0.00022465,3]
[385407737,1757842254851,-4178.51,0.00022465,3]
[385407738,1757842254861,-480.0,0.00022465,3]
[385407739,1757842254871,-29658.1,0.00022465,3]
[385407740,1757842254880,-480.0,0.00022465,3]
[385407741,1757842254890,-996.66,0.00022465,3]
[385407742,1757842254899,-174.05452607,0.00022465,3]
[385407743,1757842254908,-395.58081226,0.00022473,2]
[385407744,1757842254917,-500.0,0.00022473,2]
[385407745,1757842254927,-500.0,0.00022473,2]
[385407746,1757842254939,-500.0,0.00022473,2]
[385407747,1757842254948,-1000.0,0.00022521,2]
[385407748,1757842254958,-502.8461323,0.00022521,2]
[385407749,1757842254967,-1006.76297353,0.00022521,2]
[385407750,1757842254978,-842.75575565,0.00022521,2]
[385407751,1757842254988,-1000.0,0.00022521,2]
[385407752,1757842254997,-1000.0,0.00022521,2]
[385407753,1757842255008,-1000.0,0.00022521,2]
[385407754,1757842255019,-1000.0,0.00022521,2]
[385407755,1757842255028,-507.76192402,0.00022521,2]
[385407756,1757842255037,-1000.0,0.00022521,2]
[385407757,1757842255047,-472.21422934,0.00022521,2]
[385407758,1757842255056,-1000.0,0.00022521,2]
[385407759,1757842255066,-508.26693493,0.00022521,2]
[385407760,1757842255075,-502.72568923,0.00022521,2]
[385407761,1757842255085,-233.0,0.00022545,2]
[385407762,1757842255094,-233.0,0.00022589,2]
[385407763,1757842255104,-600.0,0.00022619,2]
[385407764,1757842255113,-160.0,0.00022621,2]
[385407765,1757842255123,-324.05039967,0.00022624,2]
[385407766,1757842255132,-755.0,0.00022638,2]
[385407767,1757842255142,-8022.29825652,0.00022639,2]
[385407768,1757842255151,-480.0,0.00022739,3]
[385407769,1757842255161,-480.0,0.00022739,3]
[385407770,1757842255170,-480.0,0.00022739,3]
[385407771,1757842255180,-480.0,0.00022739,3]
[385407772,1757842255189,-507.98928696,0.00022739,3]
[385407773,1757842255199,-493.58209321,0.00022739,3]
[385407774,1757842255208,-480.0,0.00022739,3]
[385407775,1757842255218,-485.53099758,0.00022739,3]
[385407776,1757842255228,-480.0,0.00022739,3]
[385407777,1757842255237,-480.0,0.00022739,3]
[385407778,1757842255248,-500.0,0.00022739,3]
[385407779,1757842255258,-480.0,0.00022739,3]
[385407780,1757842255268,-603.75,0.00022739,3]
[385407781,1757842255277,-517.94,0.00022739,3]
[385407782,1757842255287,-650.32,0.00022739,3]
[385407783,1757842255296,-480.0,0.00022739,3]
[385407784,1757842255305,-480.0,0.00022739,3]
[385407785,1757842255315,-480.0,0.00022739,3]
[385407786,1757842255325,-628.38,0.00022739,3]
[385407787,1757842255334,-480.0,0.00022739,3]
[385407788,1757842255343,-487.82,0.00022739,3]
[385407789,1757842255353,-480.0,0.00022739,3]
[385407790,1757842255362,-480.0,0.00022739,3]
[385407791,1757842255372,-715.55,0.00022739,3]
[385407792,1757842255381,-480.0,0.00022739,3]
[385407793,1757842255390,-857.15,0.00022739,3]
[385407794,1757842255399,-1039.56,0.00022739,3]
[385407795,1757842255409,-480.0,0.00022739,3]
[385407796,1757842255418,-1229.55,0.00022739,3]
[385407797,1757842255427,-1078.36,0.00022739,3]
[385407798,1757842255437,-814.79,0.00022739,3]
[385407799,1757842255446,-878.99,0.00022739,3]
[385407800,1757842255456,-504.52477876,0.00022739,3]
[385407801,1757842255465,-480.0,0.00022739,3]
[385407802,1757842255474,-1413.74,0.00022739,3]
[385407803,1757842255485,-480.0,0.00022739,3]
[385407804,1757842255495,-1065.31,0.00022739,3]
[385407805,1757842255504,-480.0,0.00022739,3]
[385407806,1757842255514,-489.74,0.00022739,3]
[385407807,1757842255523,-480.0,0.00022739,3]
[385407808,1757842255533,-480.0,0.00022739,3]
[385407809,1757842255542,-783.43,0.00022739,3]
[385407810,1757842255552,-480.0,0.00022739,3]
[385407811,1757842255562,-1058.04,0.00022739,3]
[385407812,1757842255571,-480.0,0.00022739,3]
[385407813,1757842255580,-480.0,0.00022739,3]
[385407814,1757842255590,-728.82,0.00022739,3]
[385407815,1757842255599,-480.0,0.00022739,3]
[385407816,1757842255609,-486.95323596,0.00022739,3]
[385407817,1757842255618,-724.7,0.00022739,3]
[385407818,1757842255628,-500.0,0.00022739,3]
[385407819,1757842255638,-480.0,0.00022739,3]
[385407820,1757842255647,-480.0,0.00022739,3]
[385407821,1757842255656,-480.0,0.00022739,3]
[385407822,1757842255666,-480.0,0.00022739,3]
[385407823,1757842255675,-736.46,0.00022739,3]
[385407824,1757842255685,-480.0,0.00022739,3]
[385407825,1757842255695,-953.32,0.00022739,3]
[385407826,1757842255705,-1851.05,0.00022739,3]
[385407827,1757842255714,-816.13,0.00022739,3]
[385407828,1757842255723,-916.64,0.00022739,3]
[385407829,1757842255733,-859.31,0.00022739,3]
[385407830,1757842255743,-480.0,0.00022739,3]
[385407831,1757842255752,-857.5,0.00022739,3]
[385407832,1757842255761,-558.54,0.00022739,3]
[385407833,1757842255770,-480.0,0.00022739,3]
[385407834,1757842255780,-344.81434921,0.00022739,3]
[385407835,1757842255790,-1052.55,0.00022739,3]
[385407836,1757842255799,-480.0,0.00022739,3]
[385407837,1757842255809,-4286.53,0.00022739,3]
[385407838,1757842255819,-480.0,0.00022739,3]
[385407839,1757842255829,-3346.74,0.00022739,3]
[385407840,1757842255839,-1303.6,0.00022739,3]
[385407841,1757842255850,-480.0,0.00022739,3]
[385407842,1757842255860,-480.0,0.00022739,3]
[385407843,1757842255870,-1497.82,0.00022739,3]
[385407844,1757842255881,-578.87,0.00022739,3]
[385407845,1757842255891,-480.0,0.00022739,3]
[385407846,1757842255900,-480.0,0.00022739,3]
[385407847,1757842255911,-1428.71,0.00022739,3]
[385407848,1757842255921,-480.0,0.00022739,3]
[385407849,1757842255932,-1484.05,0.00022739,3]
[385407850,1757842255942,-512.92,0.00022739,3]
[385407851,1757842255952,-6860.28,0.00022739,3]
[385407852,1757842255962,-834.53,0.00022739,3]
[385407853,1757842255971,-4760.97,0.00022739,3]
[385407854,1757842255980,-480.0,0.00022739,3]
[385407855,1757842255991,-1169.89,0.00022739,3]
[385407856,1757842256001,-590.5,0.00022739,3]
[385407857,1757842256012,-480.0,0.00022739,3]
[385407858,1757842256022,-480.0,0.00022739,3]